fUST/lending_fUST_20240722
["ID","MTS","AMOUNT","RATE_DAILY","PERIOD"]
[332853735,1721583046326,-500.0,0.00015067,2]
[332853736,1721583046335,-500.0,0.00015067,2]
[332853737,1721583046344,-500.0,0.00015067,2]
[332853738,1721583046355,-500.0,0.00015067,2]
[332853739,1721583046364,-500.0,0.00015067,2]
[332853740,1721583046373,-500.0,0.00015067,2]
[332853741,1721583046382,-500.0,0.00015067,2]
[332853742,1721583046392,-17084.62855567,0.00015068,5]
[332853743,1721583046402,-1043.29662953,0.00015068,2]
[332853744,1721583046411,-500.0,0.00015068,2]
[332853745,1721583046421,-976.27,0.00015068,2]
[332853746,1721583046430,-642.19,0.00015068,2]
[332853747,1721583046439,-552.84,0.00015068,2]
[332853748,1721583046448,-837.86,0.00015068,2]
[332853749,1721583046458,-500.0,0.00015068,2]
[332853750,1721583046468,-838.14,0.00015068,2]
[332853751,1721583046477,-500.0,0.00015068,2]
[332853752,1721583046487,-2035.58,0.00015068,2]
[332853753,1721583046498,-554.09,0.00015068,2]
[332853754,1721583046507,-500.0,0.00015068,2]
[332853755,1721583046518,-1328.22,0.00015068,2]
[332853756,1721583046527,-500.0,0.00015068,2]
[332853757,1721583046536,-500.0,0.00015068,2]
[332853758,1721583046546,-506.13,0.00015068,2]
[332853759,1721583046555,-310.76995998,0.00015068,2]
[332853760,1721583046563,-1470.26,0.00015068,2]
[332853761,1721583046573,-2054.5,0.00015068,2]
[332853762,1721583046582,-500.0,0.00015068,2]
[332853763,1721583046592,-628.44,0.00015068,2]
[332853764,1721583046601,-500.0,0.00015068,2]
[332853765,1721583046611,-500.0,0.00015068,2]
[332853766,1721583046620,-700.9,0.00015068,2]
[332853767,1721583046630,-500.0,0.00015068,2]
[332853768,1721583046639,-500.0,0.00015068,2]
[332853769,1721583046648,-500.0,0.00015068,2]
[332853770,1721583046658,-630.92,0.00015068,2]
[332853771,1721583046667,-1078.09,0.00015068,2]
[332853772,1721583046676,-816.07,0.00015068,2]
[332853774,1721583046687,-500.0,0.00015068,2]
[332853775,1721583046698,-627.68,0.00015068,2]
[332853776,1721583046707,-604.38,0.00015068,2]
[332853778,1721583046717,-649.28,0.00015068,2]
[332853779,1721583046727,-2006.04,0.00015068,2]
[332853780,1721583046736,-500.0,0.00015068,2]
[332853781,1721583046746,-500.0,0.00015068,2]
[332853782,1721583046755,-500.0,0.00015068,2]
[332853783,1721583046767,-565.27,0.00015068,2]
[332853784,1721583046777,-527.61,0.00015068,2]
[332853785,1721583046786,-500.0,0.00015068,2]
[332853786,1721583046796,-500.0,0.00015068,2]
[332853787,1721583046805,-562.13228673,0.00015068,2]
[332853788,1721583046814,-500.0,0.00015068,2]
[332853789,1721583046823,-500.0,0.00015068,2]
[332853790,1721583046833,-666.18,0.00015068,2]
[332853791,1721583046843,-3069.31,0.00015068,2]
[332853792,1721583046852,-859.08,0.00015068,2]
[332853793,1721583046862,-500.0,0.00015068,2]
[332853794,1721583046871,-500.0,0.00015068,2]
[332853795,1721583046881,-500.0,0.00015068,2]
[332853796,1721583046891,-500.0,0.00015068,2]
[332853797,1721583046903,-1517.82,0.00015068,2]
[332853798,1721583046913,-500.0,0.00015068,2]
[332853799,1721583046923,-1176.08,0.00015068,2]
[332853800,1721583046932,-500.0,0.00015068,2]
[332853801,1721583046941,-500.0,0.00015068,2]
[332853802,1721583046951,-500.0,0.00015068,2]
[332853803,1721583046960,-500.0,0.00015068,2]
[332853804,1721583046970,-500.0,0.00015068,2]
[332853805,1721583046979,-1445.42,0.00015068,2]
[332853806,1721583046989,-500.0,0.00015068,2]
[332853807,1721583046999,-500.0,0.00015068,2]
[332853808,1721583047009,-500.0,0.00015068,2]
[332853809,1721583047019,-771.46,0.00015068,2]
[332853810,1721583047028,-2045.09,0.00015068,2]
[332853811,1721583047038,-500.0,0.00015068,2]
[332853812,1721583047047,-500.0,0.00015068,2]
[332853813,1721583047057,-930.2,0.00015068,2]
[332853814,1721583047067,-500.0,0.00015068,2]
[332853815,1721583047076,-684.13,0.00015068,2]
[332853816,1721583047086,-414.45463875,0.00015068,2]
[332853817,1721583047096,-500.0,0.00015068,2]
[332853818,1721583047105,-687.94,0.00015068,2]
[332853819,1721583047115,-1866.61,0.00015068,2]
[332853820,1721583047125,-1337.16,0.00015068,2]
[332853821,1721583047135,-565.6,0.00015068,2]
[332853822,1721583047145,-561.68,0.00015068,2]
[332853823,1721583047154,-723.1,0.00015068,2]
[332853824,1721583047164,-500.0,0.00015068,2]
[332853825,1721583047174,-1520.82,0.00015068,2]
[332853826,1721583047183,-500.0,0.00015068,2]
[332853827,1721583047192,-1951.93,0.00015068,2]
[332853828,1721583047203,-2114.25,0.00015068,2]
[332853829,1721583047212,-500.0,0.00015068,2]
[332853830,1721583047222,-1164.77,0.00015068,2]
[332853831,1721583047232,-1320.34,0.00015068,2]
[332853832,1721583047241,-744.8,0.00015068,2]
[332853833,1721583047251,-1724.01,0.00015068,2]
[332853834,1721583047261,-500.0,0.00015068,2]
[332853835,1721583047270,-1333.01,0.00015068,2]
[332853836,1721583047280,-500.0,0.00015068,2]
[332853837,1721583047289,-504.86,0.00015068,2]
[332853838,1721583047298,-611.04,0.00015068,2]
[332853839,1721583047308,-531.31,0.00015068,2]
[332853840,1721583047317,-2564.77,0.00015068,2]
[332853841,1721583047327,-503.98,0.00015068,2]
[332853842,1721583047336,-1473.72,0.00015068,2]
[332853843,1721583047346,-500.0,0.00015068,2]
[332853844,1721583047356,-500.0,0.00015068,2]
[332853845,1721583047365,-579.86,0.00015068,2]
[332853846,1721583047375,-674.71,0.00015068,2]
[332853847,1721583047384,-1005.89,0.00015068,2]
[332853848,1721583047394,-500.0,0.00015068,2]
[332853849,1721583047403,-500.0,0.00015068,2]
[332853850,1721583047413,-500.0,0.00015068,2]
[332853851,1721583047422,-5550.3,0.00015068,2]
[332853852,1721583047432,-1341.62,0.00015068,2]
[332853853,1721583047442,-1204.73,0.00015068,2]
[332853854,1721583047452,-500.0,0.00015068,2]
[332853855,1721583047462,-12941.36,0.00015068,2]
[332853856,1721583047471,-1907.18,0.00015068,2]
[332853857,1721583047483,-3689.8,0.00015068,2]
[332853858,1721583047493,-500.0,0.00015068,2]
[332853859,1721583047503,-500.0,0.00015068,2]
[332853860,1721583047513,-1624.15,0.00015068,2]
[332853861,1721583047526,-3041.94,0.00015068,2]
[332853862,1721583047535,-1054.8,0.00015068,2]
[332853863,1721583047545,-2090.47,0.00015068,2]
[332853864,1721583047555,-500.0,0.00015068,2]
[332853865,1721583047565,-1806.74,0.00015068,2]
[332853866,1721583047574,-2202.13,0.00015068,2]
[332853867,1721583047583,-500.0,0.00015068,2]
[332853868,1721583047593,-500.0,0.00015068,2]
[332853869,1721583047602,-4016.4,0.00015068,2]
[332853870,1721583047612,-2213.48,0.00015068,2]
[332853871,1721583047621,-500.0,0.00015068,2]
[332853872,1721583047631,-491.77680068,0.00015068,2]
[332853873,1721583047640,-500.0,0.00015068,2]
[332853874,1721583047650,-500.0,0.00015068,2]
[332853875,1721583047660,-2197.7,0.00015068,2]
[332853876,1721583047670,-1723.55,0.00015068,2]
[332853877,1721583047680,-500.0,0.00015068,2]
[332853878,1721583047693,-652.01,0.00015068,2]
[332853879,1721583047703,-5397.5,0.00015068,2]
[332853880,1721583047713,-1092.54,0.00015068,2]
[332853881,1721583047731,-993.63,0.00015068,2]
[332853882,1721583047744,-917.62,0.00015068,2]
[332853883,1721583047754,-500.0,0.00015068,2]
[332853884,1721583047766,-500.0,0.00015068,2]
[332853885,1721583047777,-1170.03,0.00015068,2]
[332853886,1721583047787,-716.45,0.00015068,2]
[332853887,1721583047799,-4132.02,0.00015068,2]
[332853888,1721583047809,-500.0,0.00015068,2]
[332853889,1721583047819,-500.0,0.00015068,2]
[332853890,1721583047829,-2222.11,0.00015068,2]
[332853891,1721583047842,-818.39,0.00015068,2]
[332853892,1721583047852,-555.72,0.00015068,2]
[332853893,1721583047863,-935.93,0.00015068,2]
[332853894,1721583047874,-7400.98,0.00015068,2]
[332853895,1721583047885,-930.77,0.00015068,2]
[332853896,1721583047895,-500.0,0.00015068,2]
[332853897,1721583047904,-500.0,0.00015068,2]
[332853898,1721583047915,-734.72,0.00015068,2]
[332853899,1721583047925,-500.0,0.00015068,2]
[332853900,1721583047935,-500.0,0.00015068,2]
[332853901,1721583047946,-1669.97,0.00015068,2]
[332853902,1721583047958,-850.61,0.00015068,2]
[332853903,1721583047969,-500.0,0.00015068,2]
[332853904,1721583047980,-552.12,0.00015068,2]
[332853905,1721583047992,-930.18,0.00015068,2]
[332853906,1721583048002,-500.0,0.00015068,2]
[332853907,1721583048013,-827.41,0.00015068,2]
[332853908,1721583048022,-1082.74,0.00015068,2]
[332853909,1721583048032,-1077.15,0.00015068,2]
[332853910,1721583048275,-2665.28,0.00015068,2]
[332853911,1721583048286,-1492.38,0.00015068,2]
[332853912,1721583048296,-500.0,0.00015068,2]
[332853913,1721583048306,-1378.02,0.00015068,2]
[332853914,1721583048315,-500.0,0.00015068,2]
[332853915,1721583048325,-1450.96,0.00015068,2]
[332853916,1721583048334,-500.0,0.00015068,2]
[332853917,1721583048344,-500.0,0.00015068,2]
[332853918,1721583048353,-500.0,0.00015068,2]
[332853919,1721583048364,-500.0,0.00015068,2]
[332853920,1721583048373,-559.28,0.00015068,2]
[332853921,1721583048383,-776.21,0.00015068,2]
[332853922,1721583048394,-2703.39,0.00015068,2]
[332853923,1721583048404,-500.0,0.00015068,2]
[332853924,1721583048414,-508.21,0.00015068,2]
[332853925,1721583048424,-722.53,0.00015068,2]
[332853926,1721583048434,-1011.22,0.00015068,2]
[332853927,1721583048443,-500.0,0.00015068,2]
[332853928,1721583048454,-521.74,0.00015068,2]
[332853929,1721583048464,-500.0,0.00015068,2]
[332853930,1721583048474,-1538.99,0.00015068,2]
[332853931,1721583048488,-1744.99,0.00015068,2]
[332853932,1721583048499,-500.0,0.00015068,2]
[332853933,1721583048511,-10125.34,0.00015068,2]
[332853934,1721583048521,-923.66,0.00015068,2]
[332853935,1721583048531,-767.77,0.00015068,2]
[332853936,1721583048542,-4491.18,0.00015068,2]
[332853937,1721583048552,-500.0,0.00015068,2]
[332853938,1721583048563,-1883.32,0.00015068,2]
[332853939,1721583048573,-556.62,0.00015068,2]
[332853940,1721583048582,-500.0,0.00015068,2]
[332853941,1721583048593,-500.0,0.00015068,2]
[332853942,1721583048603,-500.0,0.00015068,2]
[332853943,1721583048613,-710.76,0.00015068,2]
[332853944,1721583048623,-3281.33,0.00015068,2]
[332853945,1721583048633,-763.56,0.00015068,2]
[332853946,1721583048643,-638.5,0.00015068,2]
[332853947,1721583048652,-4482.68,0.00015068,2]
[332853948,1721583048663,-644.61,0.00015068,2]
[332853949,1721583048673,-850.61,0.00015068,2]
[332853950,1721583048684,-500.0,0.00015068,2]
[332853951,1721583048698,-648.14,0.00015068,2]
[332853952,1721583048708,-2313.44,0.00015068,2]
[332853953,1721583048719,-1229.93,0.00015068,2]
[332853954,1721583048730,-6955.44,0.00015068,2]
[332853955,1721583048741,-500.0,0.00015068,2]
[332853956,1721583048751,-5865.42,0.00015068,2]
[332853957,1721583048765,-500.0,0.00015068,2]
[332853958,1721583048774,-500.0,0.00015068,2]
[332853959,1721583048786,-877.65,0.00015068,2]
[332853960,1721583048796,-500.0,0.00015068,2]
[332853961,1721583048806,-202.59699351,0.00015068,2]
[332853962,1721583048817,-500.0,0.00015068,2]
[332853963,1721583048827,-831.66,0.00015068,2]
[332853964,1721583048837,-500.0,0.00015068,2]
[332853965,1721583048847,-203.39,0.00015068,2]
[332853966,1721583048857,-500.0,0.00015068,2]
[332853967,1721583048867,-500.0,0.00015068,2]
[332853968,1721583048877,-500.0,0.00015068,2]
[332853969,1721583048888,-500.0,0.00015068,2]
[332853970,1721583048898,-500.0,0.00015068,2]
[332853971,1721583048908,-500.0,0.00015068,2]
[332853972,1721583048917,-500.0,0.00015068,2]
[332853973,1721583048928,-165.28,0.00015068,2]
[332853974,1721583048939,-500.0,0.00015068,2]
[332853975,1721583048948,-500.0,0.00015068,2]
[332853976,1721583048958,-539.22,0.00015068,2]
[332853977,1721583048968,-500.0,0.00015068,2]
[332853978,1721583048979,-500.0,0.00015068,2]
[332853979,1721583048989,-541.94,0.00015068,2]
[332853980,1721583049000,-569.31,0.00015068,2]
[332853981,1721583049011,-500.0,0.00015068,2]
[332853982,1721583049021,-500.0,0.00015068,2]
[332853983,1721583049032,-569.31,0.00015068,2]
[332853984,1721583049043,-500.0,0.00015068,2]
[332853985,1721583049055,-500.0,0.00015068,2]
[332853986,1721583049066,-500.0,0.00015068,2]
[332853987,1721583049077,-500.0,0.00015068,2]
[332853988,1721583049087,-500.0,0.00015068,2]
[332853989,1721583049098,-500.0,0.00015068,2]
[332853990,1721583049108,-313.44,0.00015068,2]
[332853991,1721583049118,-306.83,0.00015068,2]
[332853992,1721583049129,-195.8633417,0.00015068,2]
[332853993,1721583049140,-154.72922386,0.00015068,2]
[332853994,1721583049150,-552.71235541,0.00015068,2]
[332853995,1721583049161,-151.0,0.00015068,2]
[332853996,1721583049171,-151.0,0.00015068,2]
[332853997,1721583049181,-151.0,0.00015068,2]
[332853998,1721583049191,-151.0,0.00015068,2]
[332853999,1721583049201,-151.0,0.00015068,2]
[332854000,1721583049212,-151.350939,0.00015068,2]
[332854001,1721583049222,-151.0,0.00015068,2]
[332854002,1721583049233,-151.0,0.00015068,2]
[332854003,1721583049244,-151.0,0.00015068,2]
[332854004,1721583049255,-297.046242,0.00015068,2]
[332854005,1721583049268,-151.0,0.00015068,2]
[332854006,1721583049278,-151.0,0.00015068,2]
[332854007,1721583049287,-165.275678,0.00015068,2]
[332854008,1721583049298,-165.275678,0.00015068,2]
[332854009,1721583049309,-165.275678,0.00015068,2]
[332854010,1721583049320,-151.0,0.00015068,2]
[332854011,1721583049331,-165.275678,0.00015068,2]
[332854012,1721583049341,-151.0,0.00015068,2]
[332854013,1721583049350,-151.0,0.00015068,2]
[332854014,1721583049362,-151.0,0.00015068,2]
[332854015,1721583049371,-151.0,0.00015068,2]
[332854016,1721583049381,-151.0,0.00015068,2]
[332854017,1721583049392,-151.0,0.00015068,2]
[332854018,1721583049402,-151.0,0.00015068,2]
[332854019,1721583049412,-261.971269,0.00015068,2]
[332854020,1721583049421,-151.0,0.00015068,2]
[332854021,1721583049432,-185.062816,0.00015068,2]
[332854022,1721583049442,-151.0,0.00015068,2]
[332854023,1721583049452,-151.0,0.00015068,2]
[332854024,1721583049462,-151.0,0.00015068,2]
[332854025,1721583049473,-151.0,0.00015068,2]
[332854026,1721583049483,-151.0,0.00015068,2]
[332854027,1721583049494,-191.290646,0.00015068,2]
[332854028,1721583049505,-500.0,0.0001508,2]
[332854029,1721583049517,-578.09,0.0001508,2]
[332854030,1721583049527,-500.0,0.0001508,2]
[332854031,1721583049538,-500.0,0.0001508,2]
[332854032,1721583049549,-384.66,0.0001508,2]
[332854033,1721583049559,-632.04,0.0001508,2]
[332854034,1721583049569,-150.112233,0.000151,3]
[332854035,1721583049580,-532.79055912,0.00015137,2]
[332854036,1721583049590,-177.69,0.00015138,2]
[332854037,1721583049600,-503.23546076,0.00015147,2]
[332854038,1721583049611,-500.0,0.00015147,2]
[332854039,1721583049621,-538.99,0.00015147,2]
[332854040,1721583049632,-1398.78201665,0.00015221,2]
[332854041,1721583049642,-500.0,0.0001523,2]
[332854042,1721583049653,-500.0,0.0001523,2]
[332854043,1721583049663,-500.0,0.0001523,2]
[332854044,1721583049673,-500.0,0.0001523,2]
[332854045,1721583049684,-500.0,0.0001523,2]
[332854046,1721583049698,-500.0,0.0001523,2]
[332854047,1721583049707,-500.0,0.00015231,2]
[332854048,1721583049718,-174.71,0.00015231,2]
[332854049,1721583049730,-500.0,0.00015231,2]
[332854050,1721583049740,-500.0,0.00015231,2]
[332854051,1721583049751,-500.0,0.00015231,2]
[332854052,1721583049763,-500.0,0.00015231,2]
[332854053,1721583049776,-398.53302431,0.00015231,2]
[332854054,1721583049786,-500.0,0.00015231,2]
[332854055,1721583049798,-465.42897288,0.00015231,2]
[332854056,1721583049808,-500.0,0.00015231,2]
[332854057,1721583049818,-500.0,0.00015231,2]
[332854058,1721583049839,-500.0,0.00015231,2]
[332854059,1721583049850,-500.0,0.00015231,2]
[332854060,1721583049861,-500.0,0.00015231,2]
[332854061,1721583049871,-500.0,0.00015231,2]
[332854062,1721583049883,-500.0,0.00015231,2]
[332854063,1721583049894,-500.0,0.00015231,2]
[332854064,1721583049905,-500.0,0.00015231,2]
[332854065,1721583049915,-500.0,0.00015231,2]
[332854066,1721583049927,-500.0,0.00015231,2]
[332854067,1721583049939,-500.0,0.00015231,2]
[332854068,1721583049950,-500.0,0.00015231,2]
[332854069,1721583049961,-500.0,0.00015231,2]
[332854070,1721583049972,-527.44450704,0.00015231,2]
[332854071,1721583049983,-500.0,0.00015231,2]
[332854072,1721583049993,-500.0,0.00015231,2]
[332854073,1721583050004,-500.0,0.00015231,2]
[332854074,1721583050017,-500.0,0.00015231,2]
[332854075,1721583050027,-500.0,0.00015231,2]
[332854076,1721583050038,-500.0,0.00015231,2]
[332854077,1721583050050,-219.15355749,0.00015231,2]
[332854078,1721583050060,-500.0,0.00015231,2]
[332854079,1721583050070,-500.0,0.00015231,2]
[332854080,1721583050080,-500.0,0.00015231,2]
[332854081,1721583050091,-544.12462555,0.00015231,2]
[332854082,1721583050101,-500.0,0.00015231,2]
[332854083,1721583050110,-500.0,0.00015231,2]
[332854084,1721583050120,-500.0,0.00015231,2]
[332854085,1721583050130,-500.0,0.00015231,2]
[332854086,1721583050141,-500.0,0.00015231,2]
[332854087,1721583050151,-500.0,0.00015231,2]
[332854088,1721583050163,-500.0,0.00015231,2]
[332854089,1721583050174,-500.0,0.00015231,2]
[332854090,1721583050184,-500.0,0.00015231,2]
[332854091,1721583050194,-500.0,0.00015231,2]
[332854092,1721583050205,-500.0,0.00015231,2]
[332854093,1721583050215,-500.0,0.00015231,2]
[332854094,1721583050226,-500.0,0.00015231,2]
[332854095,1721583050236,-500.0,0.00015231,2]
[332854096,1721583050247,-500.0,0.00015231,2]
[332854097,1721583050257,-500.0,0.00015231,2]
[332854098,1721583050269,-500.0,0.00015231,2]
[332854099,1721583050279,-500.0,0.00015231,2]
[332854100,1721583050290,-551.44,0.00015231,2]
[332854101,1721583050301,-500.0,0.00015231,2]
[332854102,1721583050312,-500.0,0.00015231,2]
[332854103,1721583050323,-500.0,0.00015231,2]
[332854104,1721583050332,-500.0,0.00015231,2]
[332854105,1721583050342,-500.0,0.00015231,2]
[332854106,1721583050351,-500.0,0.00015231,2]
[332854107,1721583050361,-500.0,0.00015231,2]
[332854108,1721583050371,-582.74,0.00015231,2]
[332854109,1721583050381,-453.2,0.00015231,2]
[332854110,1721583050392,-589.48,0.00015231,2]
[332854111,1721583050403,-500.0,0.00015231,2]
[332854112,1721583050414,-374.1,0.00015231,2]
[332854113,1721583050424,-205.29597916,0.00015239,2]
[332854114,1721583050435,-500.0,0.00015239,2]
[332854115,1721583050446,-183.88,0.00015239,2]
[332854116,1721583050457,-500.0,0.00015239,2]
[332854117,1721583050467,-500.0,0.00015239,2]
[332854118,1721583050479,-500.0,0.00015239,2]
[332854119,1721583050488,-500.0,0.00015239,2]
[332854120,1721583050500,-500.0,0.00015239,2]
[332854121,1721583050510,-479.61320937,0.00015239,2]
[332854122,1721583050524,-500.0,0.00015239,2]
[332854123,1721583050533,-500.0,0.00015239,2]
[332854124,1721583050544,-500.0,0.00015239,2]
[332854125,1721583050553,-500.0,0.00015239,2]
[332854126,1721583050563,-500.0,0.00015239,2]
[332854127,1721583050573,-500.0,0.00015239,2]
[332854128,1721583050582,-500.0,0.00015239,2]
[332854129,1721583050592,-500.0,0.00015239,2]
[332854130,1721583050601,-500.0,0.00015239,2]
[332854131,1721583050611,-500.0,0.00015239,2]
[332854132,1721583050620,-500.0,0.00015239,2]
[332854133,1721583050632,-500.0,0.00015239,2]
[332854134,1721583050643,-500.0,0.00015239,2]
[332854135,1721583050656,-500.0,0.00015239,2]
[332854136,1721583050667,-200.9,0.00015239,2]
[332854137,1721583050677,-500.0,0.00015239,2]
[332854138,1721583050691,-500.0,0.00015239,2]
[332854139,1721583050701,-500.0,0.00015239,2]
[332854140,1721583050711,-500.0,0.00015239,2]
[332854141,1721583050722,-343.49118687,0.00015239,2]
[332854142,1721583050732,-500.0,0.00015239,2]
[332854143,1721583050742,-500.0,0.00015239,2]
[332854144,1721583050752,-500.0,0.00015239,2]
[332854145,1721583050765,-500.0,0.00015239,2]
[332854146,1721583050778,-500.0,0.00015239,2]
[332854147,1721583050787,-500.0,0.00015239,2]
[332854148,1721583050807,-500.0,0.00015239,2]
[332854149,1721583050823,-500.0,0.00015239,2]
[332854150,1721583050839,-159.91,0.00015239,2]
[332854151,1721583050853,-500.0,0.00015239,2]
[332854152,1721583050868,-500.0,0.00015239,2]
[332854153,1721583050880,-504.0780513,0.00015239,2]
[332854154,1721583050892,-471.5951001,0.00015239,2]
[332854155,1721583050904,-500.0,0.00015239,2]
[332854156,1721583050917,-500.0,0.00015239,2]
[332854157,1721583050930,-500.0,0.00015239,2]
[332854158,1721583050942,-320.34,0.00015239,2]
[332854159,1721583050953,-500.0,0.00015239,2]
[332854160,1721583050967,-500.0,0.00015239,2]
[332854161,1721583050981,-500.0,0.00015239,2]
[332854162,1721583050994,-500.0,0.00015239,2]
[332854163,1721583051007,-165.183616,0.00015239,2]
[332854164,1721583051020,-151.0,0.00015239,2]
[332854165,1721583051034,-151.0,0.00015239,2]
[332854166,1721583051046,-232.851298,0.00015239,2]
[332854167,1721583051058,-151.0,0.00015239,2]
[332854168,1721583051070,-151.0,0.00015239,2]
[332854169,1721583051083,-165.275678,0.00015239,2]
[332854170,1721583051094,-165.275678,0.00015239,2]
[332854171,1721583051106,-151.0,0.00015239,2]
[332854172,1721583051118,-151.0,0.00015239,2]
[332854173,1721583051133,-151.0,0.00015239,2]
[332854174,1721583051147,-166.18,0.00015241,2]
[332854175,1721583051160,-271.46,0.00015241,2]
[332854176,1721583051173,-268.59,0.00015241,2]
[332854177,1721583051186,-500.0,0.00015241,2]
[332854178,1721583051198,-173.00768243,0.00015242,2]
[332854179,1721583051212,-150.112233,0.000153,3]
[332854180,1721583051224,-659.88,0.00015315,2]
[332854181,1721583051238,-627.65,0.00015315,2]
[332854182,1721583051251,-500.0,0.00015315,2]
[332854183,1721583051263,-500.0,0.00015321,2]
[332854184,1721583051276,-244.99,0.00015321,2]
[332854185,1721583051288,-500.0,0.00015321,2]
[332854186,1721583051299,-500.0,0.0001533,2]
[332854187,1721583051311,-1398.78201665,0.0001533,2]
[332854188,1721583051323,-8392.6920999,0.00015332,2]
[332854189,1721583051336,-451.93,0.0001534,2]
[332854190,1721583051347,-545.09,0.0001534,2]
[332854191,1721583051359,-366.61,0.0001534,2]
[332854192,1721583051371,-500.0,0.0001534,2]
[332854193,1721583051382,-306.74,0.0001534,2]
[332854194,1721583051394,-500.0,0.0001534,2]
[332854195,1721583051405,-500.0,0.0001534,2]
[332854196,1721583051416,-389.7,0.0001534,2]
[332854197,1721583051427,-500.0,0.0001534,2]
[332854198,1721583051439,-500.0,0.0001534,2]
[332854199,1721583051450,-535.58,0.0001534,2]
[332854200,1721583051464,-506.04,0.0001534,2]
[332854201,1721583051478,-554.5,0.0001534,2]
[332854202,1721583051492,-500.0,0.0001534,2]
[332854203,1721583051507,-564.77,0.00015341,2]
[332854204,1721583051520,-500.0,0.00015341,2]
[332854205,1721583051531,-539.22,0.00015341,2]
[332854206,1721583051543,-202.13,0.00015341,2]
[332854207,1721583051553,-500.0,0.00015341,2]
[332854208,1721583051564,-500.0,0.00015341,2]
[332854209,1721583051575,-500.0,0.00015341,2]
[332854210,1721583051587,-500.0,0.00015341,2]
[332854211,1721583051600,-383.32,0.00015341,2]
[332854212,1721583051612,-500.0,0.00015341,2]
[332854213,1721583051623,-500.0,0.00015341,2]
[332854214,1721583051634,-500.0,0.00015341,2]
[332854215,1721583051645,-432.58655101,0.00015341,2]
[332854216,1721583051657,-402.27753728,0.00015341,2]
[332854217,1721583051669,-644.61,0.00015341,2]
[332854218,1721583051682,-350.61,0.00015341,2]
[332854219,1721583051699,-500.0,0.00015341,2]
[332854220,1721583051712,-500.0,0.00015342,2]
[332854221,1721583051724,-500.0,0.00015342,2]
[332854222,1721583051735,-500.0,0.00015342,2]
[332854223,1721583051746,-683.88,0.00015342,2]
[332854224,1721583051758,-2306.83,0.00015342,2]
[332854225,1721583051774,-500.0,0.00015342,2]
[332854226,1721583051784,-500.0,0.00015342,2]
[332854227,1721583051796,-504.49495623,0.00015342,2]
[332854228,1721583051807,-500.0,0.00015342,2]
[332854229,1721583051817,-500.0,0.00015342,2]
[332854230,1721583051829,-500.0,0.00015342,2]
[332854231,1721583051841,-500.0,0.00015342,2]
[332854232,1721583051852,-500.0,0.00015342,2]
[332854233,1721583051862,-500.0,0.00015342,2]
[332854234,1721583051873,-500.0,0.00015342,2]
[332854235,1721583051884,-415.85294918,0.00015342,2]
[332854236,1721583051895,-500.0,0.00015342,2]